Cogmind - Beta 13 @@@ ROGUE MODE // 2024.05.30 @ 21:46:27 Player: Lunace Result: Self-destructed Performance ------------- Evolutions (4) 2000 Regions Visited (17) 3400 Robots Destroyed (94) 470 Value Destroyed (3214) 3214 Prototype IDs (43) 860 Alien Tech Used (0) 0 Bonus (1079) 1079 TOTAL SCORE: 11023 Bonus ------- Follower Combat Kills 551 Aligned with FarCom 300 Met Data Miner 300 Met Imprinter 300 Friendly Fire -372 Cogmind --------- Core Integrity 479/850 Matter 281/300 Energy 39/100 System Corruption 9% Temperature Cool (0) Movement Walking (120) Location -5/Proximity Caves Parts ------- > --- POWER (2) -------- (None) > --- PROPULSION (4) --- Enhanced Flexi-carbon Leg > --- UTILITY (7) ------ Improved Cooling System Large Storage Unit > --- WEAPON (2) ------- Lance > --- INVENTORY (15) --- Energy Well (0) Improved Signal Interpreter Force Field Component Analysis Suite Improved System Restoration Module Long-range Tractor Beam Hacking Drone Bay (1/1) Plasma Rifle Plasma Rifle Plasma Rifle Thermic Laser Heavy Plasma Cannon Peak State ------------ > --- POWER ------------ Improved Deuterium Engine Fusion Compressor > --- PROPULSION ------- Titanium Leg Makeshift Leg Flexi-carbon Leg Flexi-carbon Leg > --- UTILITY ---------- Large Storage Unit Enhanced Optical Array Tactical Coordination Suite Makeshift Light Armor Plating Makeshift Light Armor Plating Makeshift Light Armor Plating Force Field > --- WEAPON ----------- Plasma Rifle Thermic Laser > --- INVENTORY -------- Improved Signal Interpreter Component Analysis Suite Long-range Tractor Beam Hacking Drone Bay Plasma Rifle Plasma Rifle Plasma Rifle Plasma Rifle Plasma Rifle Heavy Plasma Cannon RU-N14's Throwing Claymores RU-N14's Throwing Claymores RU-N14's Throwing Claymores Phasing Sabre [Rating: 71] Favorites ----------- Power Improved Deuterium Engine Engine Improved Deuterium Engine Power Core Nuclear Core Propulsion Aluminum Leg Leg Aluminum Leg Wheel Compact Wheel Utility Makeshift Light Armor Plating Device Improved Cooling System Storage Large Storage Unit Processor Improved Signal Interpreter Protection Makeshift Light Armor Plating Weapon Plasma Rifle Energy Gun Plasma Rifle Ballistic Gun AWS/Gauss Ballistic Cannon Assault Cannon Launcher Precision Grenade Launcher Special Weapon RU-N14's Throwing Claymores Slashing Weapon Phasing Sabre Piercing Weapon Lance Build | -11 -10 -10 -9 -9 -9 -8 -8 -7 -7 -7 -7 -6 -6 -6 -6 -6 -5 ------- Run | Yrd Mat Min Mat Min Exi Min Mat Fac Low Low Zio Pro Fac Low Low Dat Pro Slots Evolved 8 | . . . 2 . . . 2 2 . . . . 2 . . . . Power 1 | . . . . . . . . 1 . . . . . . . . . Propulsion 2 | . . . 1 . . . 1 . . . . . . . . . . Utility 5 | . . . 1 . . . 1 1 . . . . 2 . . . . Weapon . | . . . . . . . . . . . . . . . . . . Parts Attached 89 | 7 3 1 13 7 2 . 5 7 2 1 10 6 13 3 6 . 3 Power 10 | 1 . . 2 1 . . . 3 . . . 1 2 . . . . Engine 6 | 1 . . 1 . . . . 2 . . . 1 1 . . . . Core 4 | . . . 1 1 . . . 1 . . . . 1 . . . . Reactor . | . . . . . . . . . . . . . . . . . . Propulsion 21 | 2 2 . 5 1 . . 1 1 . . 1 3 1 . 3 . 1 Treads . | . . . . . . . . . . . . . . . . . . Leg 18 | 2 2 . 4 . . . 1 . . . 1 3 1 . 3 . 1 Wheel 3 | . . . 1 1 . . . 1 . . . . . . . . . Hover . | . . . . . . . . . . . . . . . . . . Flight . | . . . . . . . . . . . . . . . . . . Utility 28 | 2 . . 2 1 1 . 4 3 2 . 5 1 7 . . . . Device 11 | 1 . . 1 1 . . 1 . . . 2 1 4 . . . . Storage 3 | 1 . . . . 1 . . 1 . . . . . . . . . Processor 3 | . . . 1 . . . . 1 . . . . 1 . . . . Hackware . | . . . . . . . . . . . . . . . . . . Protection 11 | . . . . . . . 3 1 2 . 3 . 2 . . . . Artifact . | . . . . . . . . . . . . . . . . . . Weapon 30 | 2 1 1 4 4 1 . . . . 1 4 1 3 3 3 . 2 Energy Gun 8 | . 1 . 1 1 . . . . . . . . 3 . 1 . 1 Energy Cannon . | . . . . . . . . . . . . . . . . . . Ballistic Gun 5 | 2 . . 1 . 1 . . . . . . 1 . . . . . Ballistic Cannon 3 | . . . 2 1 . . . . . . . . . . . . . Launcher 6 | . . 1 . 2 . . . . . 1 2 . . . . . . Special Weapon 5 | . . . . . . . . . . . 2 . . 1 2 . . Impact Weapon . | . . . . . . . . . . . . . . . . . . Slashing Weapon 1 | . . . . . . . . . . . . . . 1 . . . Piercing Weapon 2 | . . . . . . . . . . . . . . 1 . . 1 Special Melee Weapon . | . . . . . . . . . . . . . . . . . . Unidentified Prototypes 5 | . . . . . . . . . . . 4 . . . . . 1 Parts Lost 21 | . 1 1 1 4 . . . . . . . 1 . 2 . . 11 Power 3 | . . . . 1 . . . . . . . . . 1 . . 1 Propulsion 8 | . . . 1 1 . . . . . . . 1 . 1 . . 4 Utility 7 | . . 1 . 1 . . . . . . . . . . . . 5 Weapon 3 | . 1 . . 1 . . . . . . . . . . . . 1 Highest Loss Streak 10 | . 1 1 1 4 . . . . . . . 1 . 1 . . 10 To Critical Strikes 1 | . . . . . . . . . . . . . . 1 . . . Average Slot Usage (%) 88 | . 99 96 82 81 83 77 86 83 83 84 86 92 96 92 91 93 69 Engine 10 | . 14 14 6 . . . . 11 15 15 15 15 13 12 6 6 3 Core 2 | . . . 4 10 11 11 9 3 . . . . . . . . . Leg 17 | . 27 28 30 22 22 22 23 15 7 7 7 10 26 20 24 26 16 Wheel 6 | . . . . 2 11 11 9 10 15 15 15 12 . . . . . Device 9 | . 14 11 4 . . . 1 . . . . 10 13 26 26 26 19 Storage 7 | . 14 14 11 11 11 11 9 7 7 7 7 7 6 6 6 6 6 Processor 4 | . . . 1 11 11 11 2 3 7 7 7 7 4 . . . . Protection 14 | . . . . . . . 23 22 22 23 22 11 18 13 13 13 10 Energy Gun 3 | . 1 5 4 10 6 . . . . . . . 12 6 6 6 4 Ballistic Gun 4 | . 27 14 7 . 4 11 9 7 7 6 . 2 . . . . . Ballistic Cannon 1 | . . . 7 11 6 . . . . . . . . . . . . Launcher 1 | . . 9 2 . . . . . . . 7 7 . . . . . Piercing Weapon 1 | . . . . . . . . . . . . . . 5 3 . 2 Naked Turns . | . . . . . . . . . . . . . . . . . . Heaviest Build 76 | 15 15 16 23 21 37 37 55 68 69 69 67 70 72 76 66 66 66 Greatest Support 80 | 20 20 20 30 30 20 16 16 44 44 44 44 75 77 77 80 80 80 Greatest Overweight (x) 11 | 1 . . 1 1 2 2 3 4 1 1 1 2 . 1 1 . 11 Average Overweight (x) . | . . . . . 1 2 2 2 1 1 1 . . . . . . Largest Inventory Capacity 15 | 8 8 8 8 8 15 15 15 15 15 15 15 15 15 15 15 15 15 Average Capacity 13 | 7 8 8 8 8 13 15 15 15 15 15 15 15 15 15 15 15 15 Most Carried 15 | 1 6 7 8 7 9 9 12 13 10 12 15 15 15 15 15 13 13 Average Carried 10 | . 3 6 7 6 8 9 10 9 8 10 12 14 13 14 14 13 12 Final Capacity 15 | 8 8 8 8 8 15 15 15 15 15 15 15 15 15 15 15 15 15 Final Carried 15 | 1 6 7 7 7 9 9 12 8 10 11 15 12 15 15 13 13 12 Class Distribution -------------------- 50% | Mutant 49% | Derelict-Mutant Dominant Class ---------------- Mutant | -10/Materials Mutant | -10/Mines Mutant | -9/Materials Mutant | -9/Mines Mutant | -9/Exiles Mutant | -8/Mines Mutant | -8/Materials Mutant | -7/Factory Mutant | -7/Lower Caves Mutant | -7/Lower Caves Derelict-Mutant | -7/Zion Derelict-Mutant | -6/Proximity Caves Derelict-Mutant | -6/Factory Derelict-Mutant | -6/Lower Caves Derelict-Mutant | -6/Lower Caves Derelict-Mutant | -6/Data Miner Derelict-Mutant | -5/Proximity Caves Resources | -11 -10 -10 -9 -9 -9 -8 -8 -7 -7 -7 -7 -6 -6 -6 -6 -6 -5 ----------- Run | Yrd Mat Min Mat Min Exi Min Mat Fac Low Low Zio Pro Fac Low Low Dat Pro Matter Collected 1568 | 257 208 . 157 188 15 . 75 10 60 20 120 218 125 65 50 . . Remotely . | . . . . . . . . . . . . . . . . . . Salvage Created 3075 | 38 163 52 317 106 . 101 481 . 68 466 . 567 171 140 204 . 201 Parts 175 | 6 14 13 19 6 . 4 37 . 7 19 . 22 12 1 4 . 11 Haulers Intercepted . | . . . . . . . . . . . . . . . . . . Recyclers Shooed 1 | . . . 1 . . . . . . . . . . . . . . Parts Field Recycled . | . . . . . . . . . . . . . . . . . . Retrieved Matter . | . . . . . . . . . . . . . . . . . . Parts Self-Destructed 62 | . . . . . . . . . 7 20 . 24 . 2 1 . 8 Prevented 1 | . . . . . . . . . . 1 . . . . . . . Kills | -11 -10 -10 -9 -9 -9 -8 -8 -7 -7 -7 -7 -6 -6 -6 -6 -6 -5 ------- Run | Yrd Mat Min Mat Min Exi Min Mat Fac Low Low Zio Pro Fac Low Low Dat Pro Combat Hostiles Destroyed 80 | . 7 6 4 6 . 2 7 . 3 12 . 15 2 4 7 . 5 Melee 2 | . . . . . . . . . . . . . . 1 . . 1 Guns 37 | . 7 . 3 1 . 2 7 . 3 9 . 3 2 . . . . Cannons 5 | . . . 1 1 . . . . . . . 1 . 1 1 . . AOE 36 | . . 6 . 4 . . . . . 3 . 11 . 2 6 . 4 Classes Destroyed 13 | 1 3 . 2 2 . . 1 . . . . 3 1 . . . . Worker 3 | . . . . . . . 2 . . . . . 1 . . . . Builder 1 | . . . . 1 . . . . . . . . . . . . . Tunneler 2 | 2 . . . . . . . . . . . . . . . . . Recycler 3 | . . . 1 1 . . 1 . . . . . . . . . . Watcher 4 | . 1 . . . . . 2 . . . . . 1 . . . . Swarmer 30 | . 6 6 . 4 . . . . 3 6 . 4 . 1 . . . Grunt 32 | . 1 . . . . 2 6 . . 5 . 8 . 2 6 . 2 Brawler 2 | . . . . . . . . . . . . 1 . . . . 1 Duelist 4 | . . . . . . . . . . . . 1 . . 1 . 2 Sentry 8 | . . . 4 . . . 1 . . 1 . . 1 1 . . . Demolisher 2 | . . . . 2 . . . . . . . . . . . . . Hunter 1 | . . . . . . . . . . . . 1 . . . . . Programmer 1 | . . . . . . . . . . . . . 1 . . . . Guerrilla 1 | . . . . . . . . . . . . 1 . . . . . Best Kill Streak 12 | 2 6 3 2 4 . 2 5 . 3 5 . 12 2 3 4 . 4 Combat Bots Only 12 | . 6 3 1 4 . 2 4 . 3 5 . 12 1 3 4 . 4 Max Kills in Single Turn 4 | 1 1 2 1 4 . 1 2 . 1 3 . 3 1 2 2 . 2 Gunslinging . | . . . . . . . . . . . . . . . . . . Exploded 4 | . . 2 . 4 . . . . . 3 . 3 . 1 2 . 2 Melee 1 | . . . . . . . . . . . . . . 1 . . 1 Uniques/NPCs Destroyed . | . . . . . . . . . . . . . . . . . . Combat | -11 -10 -10 -9 -9 -9 -8 -8 -7 -7 -7 -7 -6 -6 -6 -6 -6 -5 -------- Run | Yrd Mat Min Mat Min Exi Min Mat Fac Low Low Zio Pro Fac Low Low Dat Pro Hostile Shots Fired 351 | . 51 6 16 16 . . 9 . 4 18 . 46 30 52 8 . 95 Missed 114 | . 10 2 6 1 . . 5 . 2 5 . 17 13 20 2 . 31 Damage Taken 4392 | . 375 149 141 585 . . 62 . 29 216 . 567 381 252 120 . 1515 Core 651 | . 55 44 39 44 . . 16 . . 18 . 64 34 38 . . 299 Absorbed by Shields 446 | . . . . . . . . . . . . 248 29 105 . . 64 Regen/Repaired (Parts) 57 | . 57 . . . . . . . . . . . . . . . . Core Remaining (%) 84 | 100 . 60 . . . 79 97 . . . . 88 . . . . . Volleys Fired 111 | 2 30 4 13 9 . . . . . 2 . 23 11 3 6 . 8 Largest 2 | 2 2 1 2 2 . . . . . 1 . 2 2 1 1 . 2 Hottest 160 | 40 70 30 88 100 . . . . . 30 . 69 160 . . . 150 Shots Fired 274 | 4 60 4 26 17 . 7 32 2 6 49 . 25 21 3 6 . 12 Gun 227 | 4 60 . 24 6 . 7 32 2 6 47 . 8 21 . . . 10 Cannon 11 | . . . 2 9 . . . . . . . . . . . . . Launcher 20 | . . 4 . 2 . . . . . 2 . 12 . . . . . Special 16 | . . . . . . . . . . . . 5 . 3 6 . 2 Kinetic 185 | 4 56 . 14 9 . 7 32 2 6 47 . 8 . . . . . Thermal 53 | . 4 . 12 6 . . . . . . . . 21 . . . 10 Explosive 36 | . . 4 . 2 . . . . . 2 . 17 . 3 6 . 2 Electromagnetic . | . . . . . . . . . . . . . . . . . . Robot Hit Streak 27 | 1 6 3 6 13 . 2 11 4 10 13 . 9 9 11 16 . 27 Robot Miss Streak 5 | 1 5 1 2 2 . 1 1 . . 2 . 1 1 . . . . Penetration Max 1 | . . . . . . . . . . . . 1 . . . . . Secondary Targets . | . . . . . . . . . . . . . . . . . . Autonomous 95 | . . . . . . 7 32 2 6 48 . . . . . . . Shots Hit Robots 209 | 2 29 3 18 11 . 5 27 2 6 39 . 20 17 5 5 . 20 Core Hits 145 | 2 11 7 9 11 . 2 14 . 3 15 . 34 7 5 13 . 12 Critical Kills 1 | 1 . . . . . . . . . . . . . . . . . Critical Parts Destroyed 3 | . . . . . . . 1 . . 1 . 1 . . . . . Critical Strikes 15 | 1 2 . 1 2 . . 1 . . 1 . 3 2 1 . . 1 Burn 8 | . 2 . 1 2 . . . . . . . . 2 . . . 1 Destroy 4 | 1 . . . . . . 1 . . 1 . 1 . . . . . Sever 3 | . . . . . . . . . . . . 2 . 1 . . . Melee Attacks 21 | . . . . . . . . . . . . . . 4 . . 17 Impact . | . . . . . . . . . . . . . . . . . . Slashing . | . . . . . . . . . . . . . . . . . . Piercing 21 | . . . . . . . . . . . . . . 4 . . 17 Sneak Attacks . | . . . . . . . . . . . . . . . . . . Combat Hostiles . | . . . . . . . . . . . . . . . . . . Follow-up Attacks . | . . . . . . . . . . . . . . . . . . Damage Inflicted 9830 | 35 367 339 258 420 . 150 914 61 169 1297 . 2284 364 549 1296 . 1327 Guns 3642 | 35 367 . 211 58 . 150 727 61 169 1077 . 202 364 . . . 221 Cannons 198 | . . . 47 151 . . . . . . . . . . . . . Explosions 5075 | . . 339 . 211 . . 187 . . 220 . 1891 . 376 1099 . 752 Melee 379 | . . . . . . . . . . . . . . 63 . . 316 Ramming 12 | . . . . . . . . . . . . . . . 12 . . Kinetic 3048 | 35 329 . 147 151 . 150 727 61 169 1077 . 202 . . . . . Thermal 792 | . 38 . 111 58 . . . . . . . . 364 . . . 221 Explosive 5075 | . . 339 . 211 . . 187 . . 220 . 1891 . 376 1099 . 752 Electromagnetic . | . . . . . . . . . . . . . . . . . . Impact . | . . . . . . . . . . . . . . . . . . Slashing 524 | . . . . . . . . . . . . 191 . 110 185 . 38 Piercing 379 | . . . . . . . . . . . . . . 63 . . 316 Highest Corruption 9 | . . . . . . . 2 . . . . . . . . . 9 Average Corruption 4 | . . . . . . . 2 . . . . . . . . . 8 Corruption Purged . | . . . . . . . . . . . . . . . . . . Corruption Blocked . | . . . . . . . . . . . . . . . . . . Effects 4 | . . . . . . . 1 . . . . . . . . . 3 Message Errors 1 | . . . . . . . . . . . . . . . . . 1 Matter Fused 1 | . . . . . . . . . . . . . . . . . 1 Heat Flow Errors 1 | . . . . . . . 1 . . . . . . . . . . Data Loss (major) 1 | . . . . . . . . . . . . . . . . . 1 Overload Shots . | . . . . . . . . . . . . . . . . . . Overflow Damage 146 | . . 7 . 30 . . . . . 23 . 38 . 39 9 . . Projectiles . | . . . . . . . . . . . . . . . . . . Explosions 146 | . . 7 . 30 . . . . . 23 . 38 . 39 9 . . Melee . | . . . . . . . . . . . . . . . . . . Knockbacks . | . . . . . . . . . . . . . . . . . . Impact . | . . . . . . . . . . . . . . . . . . Kinetic . | . . . . . . . . . . . . . . . . . . Secondary . | . . . . . . . . . . . . . . . . . . Self-Inflicted Damage 312 | . . 119 . 23 . . . . . . . 170 . . . . . Shots 11 | . . 4 . 1 . . . . . . . 6 . . . . . Rammed . | . . . . . . . . . . . . . . . . . . Targets Rammed 1 | . . . . . . . . . . . . . . . 1 . . Kicked 1 | . . . . . . . . . . . . . . . 1 . . Crushed . | . . . . . . . . . . . . . . . . . . Highest Temperature 369 | . 45 . 89 55 . . 201 . . 28 . 69 369 . . . . Average Temperature 114 | . 18 . 34 23 . . 98 . . 10 . 27 169 . . . . Received Heat Transfer 606 | . 84 . 45 . . . 54 . . 27 . 55 36 66 57 . 182 Effects 4 | . . . . . . . . . . . . . 4 . . . . Shutdowns 1 | . . . . . . . . . . . . . 1 . . . . Interference 2 | . . . . . . . . . . . . . 2 . . . . Short Circuit 1 | . . . . . . . . . . . . . 1 . . . . Siege Activations . | . . . . . . . . . . . . . . . . . . Robots Corrupted . | . . . . . . . . . . . . . . . . . . Combat Hostiles . | . . . . . . . . . . . . . . . . . . Parts Fried . | . . . . . . . . . . . . . . . . . . Impact Corruptions . | . . . . . . . . . . . . . . . . . . Robots Melted . | . . . . . . . . . . . . . . . . . . Combat Hostiles . | . . . . . . . . . . . . . . . . . . Parts Melted 5 | . 2 . 2 . . . . . . . . . 1 . . . . Heat Transferred 2612 | . 259 . 407 296 . . . . . . . . 1050 . . . 600 Parts Sabotaged . | . . . . . . . . . . . . . . . . . . Parts Stolen . | . . . . . . . . . . . . . . . . . . Parts Stripped . | . . . . . . . . . . . . . . . . . . Power Chain Reactions . | . . . . . . . . . . . . . . . . . . Alert | -11 -10 -10 -9 -9 -9 -8 -8 -7 -7 -7 -7 -6 -6 -6 -6 -6 -5 ------- Run | Yrd Mat Min Mat Min Exi Min Mat Fac Low Low Zio Pro Fac Low Low Dat Pro Peak Influence 308 | 10 219 187 219 200 . 25 308 83 . . . . 228 . . . . Initial 185 | . 6 21 72 85 . . 17 62 . . . . 185 . . . . Average 122 | 2 152 91 146 136 . 2 159 65 . . . . 128 . . . . Maximum Alert Level 1 | . 1 . 1 1 . . 1 . . . . . 1 . . . . Low Security (%) 75 | 100 63 100 85 39 . 100 58 100 . . . . 94 . . . . Level 1 24 | . 36 . 14 60 . . 41 . . . . . 5 . . . . Level 2 . | . . . . . . . . . . . . . . . . . . Level 3 . | . . . . . . . . . . . . . . . . . . Level 4 . | . . . . . . . . . . . . . . . . . . Level 5 . | . . . . . . . . . . . . . . . . . . High Security . | . . . . . . . . . . . . . . . . . . Max Security . | . . . . . . . . . . . . . . . . . . Squads Dispatched 8 | . . . . . . . 3 1 . 1 . 1 1 . . . 1 Investigation 2 | . . . . . . . 1 1 . . . . . . . . . Extermination 1 | . . . . . . . . . . . . . 1 . . . . Reinforcement 2 | . . . . . . . 2 . . . . . . . . . . Assault 3 | . . . . . . . . . . 1 . 1 . . . . 1 Garrison . | . . . . . . . . . . . . . . . . . . Intercept . | . . . . . . . . . . . . . . . . . . Searches Triggered . | . . . . . . . . . . . . . . . . . . Construction Impeded . | . . . . . . . . . . . . . . . . . . Haulers Reinforced . | . . . . . . . . . . . . . . . . . . Active Scanning Responses . | . . . . . . . . . . . . . . . . . . Cargo Convoy Interrupts . | . . . . . . . . . . . . . . . . . . Stealth | -11 -10 -10 -9 -9 -9 -8 -8 -7 -7 -7 -7 -6 -6 -6 -6 -6 -5 --------- Run | Yrd Mat Min Mat Min Exi Min Mat Fac Low Low Zio Pro Fac Low Low Dat Pro Distress Signals 4 | . 1 . 2 . . . 1 . . . . . . . . . . Communications Jammed . | . . . . . . . . . . . . . . . . . . Distress Signals . | . . . . . . . . . . . . . . . . . . Times Spotted 123 | . 14 6 6 6 . . 11 . 3 13 . 26 3 11 7 . 17 Peak Tracking Total 10 | . 6 3 3 4 . 2 3 . 2 6 . 8 1 5 4 . 10 Tactical Retreats 11 | . 1 . . . . . . . . 2 . . . 5 . . 3 Traps | -11 -10 -10 -9 -9 -9 -8 -8 -7 -7 -7 -7 -6 -6 -6 -6 -6 -5 ------- Run | Yrd Mat Min Mat Min Exi Min Mat Fac Low Low Zio Pro Fac Low Low Dat Pro Traps Triggered 3 | . . . . . . . 2 . . . . . 1 . . . . Indirectly . | . . . . . . . . . . . . . . . . . . Trap Hack Attempts . | . . . . . . . . . . . . . . . . . . Triggered . | . . . . . . . . . . . . . . . . . . Disarmed . | . . . . . . . . . . . . . . . . . . Reprogrammed . | . . . . . . . . . . . . . . . . . . Reused . | . . . . . . . . . . . . . . . . . . Traps Extracted . | . . . . . . . . . . . . . . . . . . Installed . | . . . . . . . . . . . . . . . . . . Triggered 3 | . . . . . . . . . . 1 . . . 2 . . . Machines | -11 -10 -10 -9 -9 -9 -8 -8 -7 -7 -7 -7 -6 -6 -6 -6 -6 -5 ---------- Run | Yrd Mat Min Mat Min Exi Min Mat Fac Low Low Zio Pro Fac Low Low Dat Pro Machines Disabled 5 | . . . . . . . 3 . . 1 . 1 . . . . . Max in Single Turn 1 | . . . . . . . 1 . . 1 . 1 . . . . . Machines Repaired . | . . . . . . . . . . . . . . . . . . Machines Dismantled . | . . . . . . . . . . . . . . . . . . Machines Sabotaged . | . . . . . . . . . . . . . . . . . . Overloaded Fab Kills . | . . . . . . . . . . . . . . . . . . Hacking | -11 -10 -10 -9 -9 -9 -8 -8 -7 -7 -7 -7 -6 -6 -6 -6 -6 -5 --------- Run | Yrd Mat Min Mat Min Exi Min Mat Fac Low Low Zio Pro Fac Low Low Dat Pro Machines Accessed 23 | . 4 . 1 . 2 . 3 5 1 . . . 3 1 . 3 . Terminals 13 | . 3 . 1 . . . 3 4 . . . . 2 . . . . Fabricators . | . . . . . . . . . . . . . . . . . . Repair Stations 2 | . 1 . . . . . . 1 . . . . . . . . . Recycling Units . | . . . . . . . . . . . . . . . . . . Scanalyzers 1 | . . . . . . . . . . . . . 1 . . . . Garrison Access . | . . . . . . . . . . . . . . . . . . Total Hacks 81 | . 18 . 6 . 2 . 7 15 1 . . . 10 1 . 21 . Successful 48 | . 8 . 2 . 2 . 3 6 1 . . . 4 1 . 21 . Failed 32 | . 9 . 4 . . . 4 9 . . . . 6 . . . . Catastrophic 5 | . 1 . 1 . . . . 2 . . . . 1 . . . . Database Lockouts 1 | . 1 . . . . . . . . . . . . . . . . Manual 40 | . 12 . 5 . 1 . 6 13 . . . . 3 . . . . Terminals 47 | . 12 . 6 . . . 7 13 . . . . 9 . . . . Fabricators . | . . . . . . . . . . . . . . . . . . Repair Stations 8 | . 6 . . . . . . 2 . . . . . . . . . Recycling Units . | . . . . . . . . . . . . . . . . . . Scanalyzers 1 | . . . . . . . . . . . . . 1 . . . . Garrison Access . | . . . . . . . . . . . . . . . . . . Terminal Hacks 32 | . 2 . 1 . 2 . 1 1 1 . . . 2 1 . 21 . Record 3 | . . . . . 1 . . . . . . . . . . 2 . Part Schematic 11 | . . . . . . . . . . . . . 1 . . 10 . Robot Schematic 6 | . . . . . . . . . . . . . . . . 6 . Prototype ID Bank 5 | . 1 . 1 . . . . . . . . . . . . 3 . Open Door 2 | . . . . . . . . . 1 . . . . 1 . . . Branch Access Points 3 | . 1 . . . . . . 1 . . . . 1 . . . . Emergency Access Points 1 | . . . . . . . 1 . . . . . . . . . . Derelict Proto ID Bank 1 | . . . . . 1 . . . . . . . . . . . . Fabricator Hacks . | . . . . . . . . . . . . . . . . . . Repair Station Hacks 4 | . 3 . . . . . . 1 . . . . . . . . . Scan Component 3 | . 2 . . . . . . 1 . . . . . . . . . Repair 1 | . 1 . . . . . . . . . . . . . . . . Recycling Unit Hacks . | . . . . . . . . . . . . . . . . . . Scanalyzer . | . . . . . . . . . . . . . . . . . . Garrison Access Hacks . | . . . . . . . . . . . . . . . . . . Unauthorized Hacks 12 | . 3 . 1 . . . 2 4 . . . . 2 . . . . Terminals 12 | . 3 . 1 . . . 2 4 . . . . 2 . . . . Assimilate 2 | . . . . . . . 2 . . . . . . . . . . Botnet 9 | . 3 . 1 . . . . 3 . . . . 2 . . . . Operators 1 | . . . . . . . . 1 . . . . . . . . . Fabricators . | . . . . . . . . . . . . . . . . . . Repair Stations . | . . . . . . . . . . . . . . . . . . Recycling Units . | . . . . . . . . . . . . . . . . . . Scanalyzers . | . . . . . . . . . . . . . . . . . . Garrison Access . | . . . . . . . . . . . . . . . . . . Data Cores Recovered . | . . . . . . . . . . . . . . . . . . Used . | . . . . . . . . . . . . . . . . . . Hacking Detections 14 | . 4 . 1 . . . 2 5 . . . . 2 . . . . Full Trace Events 1 | . . . . . . . . 1 . . . . . . . . . Feedback Events . | . . . . . . . . . . . . . . . . . . Feedback Blocked . | . . . . . . . . . . . . . . . . . . Robot Schematics Acquired 6 | . . . . . . . . . . . . . . . . 6 . Robots Built . | . . . . . . . . . . . . . . . . . . Authchips . | . . . . . . . . . . . . . . . . . . Time . | . . . . . . . . . . . . . . . . . . Total Robot Build Rating . | . . . . . . . . . . . . . . . . . . Part Schematics Acquired 11 | . . . . . . . . . . . . . 1 . . 10 . Parts Built . | . . . . . . . . . . . . . . . . . . Authchips . | . . . . . . . . . . . . . . . . . . Time . | . . . . . . . . . . . . . . . . . . Total Part Build Rating . | . . . . . . . . . . . . . . . . . . Parts Repaired 1 | . 1 . . . . . . . . . . . . . . . . Time 26 | . 26 . . . . . . . . . . . . . . . . Parts Recycled . | . . . . . . . . . . . . . . . . . . Recycled Matter . | . . . . . . . . . . . . . . . . . . Retrieved Matter . | . . . . . . . . . . . . . . . . . . Retrieved Components . | . . . . . . . . . . . . . . . . . . Parts Scanalyzed . | . . . . . . . . . . . . . . . . . . Part Schematics Acquired . | . . . . . . . . . . . . . . . . . . Parts Damaged . | . . . . . . . . . . . . . . . . . . Bothacking | -11 -10 -10 -9 -9 -9 -8 -8 -7 -7 -7 -7 -6 -6 -6 -6 -6 -5 ------------ Run | Yrd Mat Min Mat Min Exi Min Mat Fac Low Low Zio Pro Fac Low Low Dat Pro Used RIF Installer . | . . . . . . . . . . . . . . . . . . Robots Hacked . | . . . . . . . . . . . . . . . . . . Non-combat . | . . . . . . . . . . . . . . . . . . Combat . | . . . . . . . . . . . . . . . . . . Robot Hacks Applied . | . . . . . . . . . . . . . . . . . . Relay Couplers Released . | . . . . . . . . . . . . . . . . . . Fabnet Peak Effective % . | . . . . . . . . . . . . . . . . . . Robots Rewired 4 | . . . . . . . . 1 . 2 . 1 . . . . . Allies Hacked . | . . . . . . . . . . . . . . . . . . Hacks Repelled . | . . . . . . . . . . . . . . . . . . Allies | -11 -10 -10 -9 -9 -9 -8 -8 -7 -7 -7 -7 -6 -6 -6 -6 -6 -5 -------- Run | Yrd Mat Min Mat Min Exi Min Mat Fac Low Low Zio Pro Fac Low Low Dat Pro Total Allies 12 | . . . . 2 . . . 1 . 2 5 1 . . . . 1 Largest Group 8 | . . . . 2 2 . . 1 1 3 8 7 . . . . 1 Highest-Rated Group 220 | . . . . 49 49 . . 32 32 80 220 206 . . . . 96 Highest-Rated Ally 96 | . . . . 31 31 . . 32 32 32 39 39 . . . . 96 Total Orders . | . . . . . . . . . . . . . . . . . . Ally Attacks 90 | . . . . . . . . . . 11 . 56 . . . . 23 Total Damage 2617 | . . . . . . . . . . 420 . 1396 . . . . 801 Kills 17 | . . . . . . . . . . 3 . 10 . . . . 4 Allies Corrupted . | . . . . . . . . . . . . . . . . . . Allies Melted . | . . . . . . . . . . . . . . . . . . Intel | -11 -10 -10 -9 -9 -9 -8 -8 -7 -7 -7 -7 -6 -6 -6 -6 -6 -5 ------- Run | Yrd Mat Min Mat Min Exi Min Mat Fac Low Low Zio Pro Fac Low Low Dat Pro Robot Analysis Total . | . . . . . . . . . . . . . . . . . . Derelict Logs Recovered 11 | . . 1 . 2 . . . . 2 1 2 1 . 1 . . 1 Drone Launches . | . . . . . . . . . . . . . . . . . . Drone Recoveries . | . . . . . . . . . . . . . . . . . . Exploration | -11 -10 -10 -9 -9 -9 -8 -8 -7 -7 -7 -7 -6 -6 -6 -6 -6 -5 ------------- Run | Yrd Mat Min Mat Min Exi Min Mat Fac Low Low Zio Pro Fac Low Low Dat Pro Turns Passed 7656 | 66 417 138 199 582 331 78 448 442 378 529 1079 483 728 1061 415 92 190 Spaces Moved 5032 | 39 236 97 103 440 257 61 304 217 320 396 857 313 422 532 290 74 74 Core 7 | 2 . . . . . . . . . . . . . . . . 5 Treads . | . . . . . . . . . . . . . . . . . . Legs 2409 | 37 236 97 92 440 75 . . . . . . 45 422 532 290 74 69 Wheels 2616 | . . . 11 . 182 61 304 217 320 396 857 268 . . . . . Hover . | . . . . . . . . . . . . . . . . . . Flight . | . . . . . . . . . . . . . . . . . . Fastest Speed 50 | 50 120 120 115 120 120 130 130 115 115 115 115 115 125 127 125 125 125 Average Speed 130 | 120 120 120 122 120 127 130 141 140 115 115 115 116 126 195 133 125 154 Slowest Speed 600 | 190 120 120 190 190 130 130 145 160 115 115 115 130 127 196 196 125 600 Overloaded Moves . | . . . . . . . . . . . . . . . . . . Propulsion Burnouts . | . . . . . . . . . . . . . . . . . . Robots Hopped . | . . . . . . . . . . . . . . . . . . Cave-ins Triggered . | . . . . . . . . . . . . . . . . . . Exploration Rate (%) 44 | 4 53 22 15 93 65 17 39 5 57 62 85 61 12 73 52 68 15 Regions Visited 17 Branch Regions 12 Pre-discovered Areas 4 | . . . . 1 1 . . . . . 1 . . . . 1 . Known Exits Taken 12 | . 1 . 1 1 1 1 1 1 1 1 1 1 1 . . . . Unknown Exits Taken 5 | 1 . 1 . . . . . . . . . . . 1 1 1 . Scrap Searched 23 | . . . . 1 . . . . 2 2 2 3 . 2 11 . . Spaces Dug 20 | . . . . 7 . . . . . . . 13 . . . . . Terrain Destroyed 381 | . . 42 . 13 . 5 21 . . 47 . 164 . 42 33 . 14 Melee . | . . . . . . . . . . . . . . . . . . Projectile 45 | . . . . 3 . 5 10 . . 26 . . . . 1 . . AOE 336 | . . 42 . 10 . . 11 . . 21 . 164 . 42 32 . 14 Terrain Rammed . | . . . . . . . . . . . . . . . . . . Walls Destroyed . | . . . . . . . . . . . . . . . . . . Machines Disabled . | . . . . . . . . . . . . . . . . . . Actions | -11 -10 -10 -9 -9 -9 -8 -8 -7 -7 -7 -7 -6 -6 -6 -6 -6 -5 --------- Run | Yrd Mat Min Mat Min Exi Min Mat Fac Low Low Zio Pro Fac Low Low Dat Pro Total 5892 | 50 309 114 153 471 262 60 322 356 330 469 953 408 596 544 311 73 111 Wait 506 | 2 36 12 8 14 . . 4 113 5 53 62 56 129 1 4 . 7 Move 5015 | 38 235 96 102 439 256 60 303 216 319 395 856 312 421 531 289 73 74 Hop . | . . . . . . . . . . . . . . . . . . Pick Up 53 | 1 5 1 6 1 1 . 7 . 2 3 12 4 7 1 1 . 1 Fast Attach 47 | 7 1 . 6 2 2 . 2 4 2 . 5 2 10 1 2 . 1 Attach 22 | . 1 . 3 2 . . 3 1 . 1 3 3 2 1 1 . 1 Detach 6 | . . . . 1 1 . . . . 1 1 . 2 . . . . Swap 20 | . 1 1 4 3 . . . 2 . . 2 1 1 1 3 . 1 Drop 67 | . . . 11 . 2 . 3 9 2 3 12 6 13 1 4 . 1 Fire 111 | 2 30 4 13 9 . . . . . 2 . 23 11 3 6 . 8 Melee 21 | . . . . . . . . . . . . . . 4 . . 17 Ram . | . . . . . . . . . . . . . . . . . . Kick 1 | . . . . . . . . . . . . . . . 1 . . Crush . | . . . . . . . . . . . . . . . . . . Escape Stasis . | . . . . . . . . . . . . . . . . . . Rewire 23 | . . . . . . . . 11 . 11 . 1 . . . . . Trap . | . . . . . . . . . . . . . . . . . . Miscellaneous . | . . . . . . . . . . . . . . . . . . Route ------- -11/Scrapyard -10/Materials (discovered 3 exits: *Mat / *Min x2) -10/Mines -9/Materials (discovered 2 exits: *Min x2) -9/Mines (discovered 3 exits: *Mat x2 / *Exi) -9/Exiles -8/Mines -8/Materials -7/Factory (discovered 2 exits: *Low x2) -7/Lower Caves -7/Lower Caves -7/Zion -6/Proximity Caves -6/Factory (discovered 2 exits: *Low x2) -6/Lower Caves -6/Lower Caves (discovered 2 exits: [Fac] / *Dat) -6/Data Miner -5/Proximity Caves History --------- Turn | Location | Event 19 | -11/Scrapyard | Discovered new exit (range 15) 67 | -11/Scrapyard | Entered Materials 312 | -10/Materials | Build established: Mutant 339 | -10/Materials | Repaired Aluminum Leg 363 | -10/Materials | Discovered new exit (range 16) 395 | -10/Materials | Identified exit to Mines 395 | -10/Materials | Central database locked down 484 | -10/Materials | Entered Mines 488 | -10/Mines | YI-UF0 nonchalantly dropped a Grenade Launcher on the ground 610 | -10/Mines | Discovered new exit (range 10) 622 | -10/Mines | Entered Materials 622 | -9/Materials | Evolved 2 slots: Propulsion x1, Utility x1 623 | -9/Materials | Identified exit to Mines 821 | -9/Materials | Entered Mines 823 | -9/Mines | Discovered new exit (range 10) 832 | -9/Mines | Assembled infested the area 853 | -9/Mines | A Derelict revealed a hidden shortcut to a safe place 853 | -9/Mines | Identified exit to Materials 897 | -9/Mines | Lost 4 parts (1p1n1u1w) 1090 | -9/Mines | Learned location of Storage (-8) 1112 | -9/Mines | Discovered exit to Materials (range 15) 1287 | -9/Mines | Learned 2 Materials zone layouts 1390 | -9/Mines | Discovered new exit (range 5) 1399 | -9/Mines | Identified exit to Exiles 1403 | -9/Mines | Entered Exiles 1403 | -9/Exiles | Accompanied by 2 allies 1432 | -9/Exiles | Met 8R-AWN 1433 | -9/Exiles | Led the pair of lost Derelicts to a safe place 1453 | -9/Exiles | Met EX-HEX 1543 | -9/Exiles | Met EX-BIN 1559 | -9/Exiles | Aligned with FarCom system 1560 | -9/Exiles | Given EX-Vault access code 1590 | -9/Exiles | Opened EX-Vault 1602 | -9/Exiles | Found AWS/Gauss 1630 | -9/Exiles | Warned to stay clear of 0b10 Research branches 1668 | -9/Exiles | Met EX-DEC 1673 | -9/Exiles | Learned location of Zion (-7) 1720 | -9/Exiles | Discovered new exit (range 12) 1732 | -9/Exiles | Identified exit to Mines 1734 | -9/Exiles | Left Exiles lab with AWS/Gauss 1734 | -9/Exiles | Entered Mines 1754 | -8/Mines | Discovered exit to Materials (range 16) 1812 | -8/Mines | Entered Materials 1812 | -8/Materials | Evolved 2 slots: Propulsion x1, Utility x1 1813 | -8/Materials | Identified exit to Factory 2260 | -8/Materials | Entered Factory 2260 | -7/Factory | Evolved 2 slots: Power x1, Utility x1 2360 | -7/Factory | Discovered new exit (range 4) 2505 | -7/Factory | Identified exit to Lower Caves 2702 | -7/Factory | Entered Lower Caves 2702 | -7/Lower Caves | Accompanied by 1 ally 2714 | -7/Lower Caves | Identified exit to Lower Caves 2758 | -7/Lower Caves | Learned Factory emergency access door positions 2790 | -7/Lower Caves | Encountered a Warlord checkpoint 3080 | -7/Lower Caves | Entered another Lower Caves area 3080 | -7/Lower Caves | Accompanied by 1 ally 3147 | -7/Lower Caves | Learned Factory stockpile data 3229 | -7/Lower Caves | Encountered a Warlord checkpoint 3256 | -7/Lower Caves | Attracted the attention of an 0b10 outpost 3552 | -7/Lower Caves | Discovered new exit (range 5) 3556 | -7/Lower Caves | Identified exit to Zion 3609 | -7/Lower Caves | Entered Zion 3609 | -7/Zion | Accompanied by 3 allies 3900 | -7/Zion | Given the Hacking Drone Bay 3900 | -7/Zion | Found Prototype Device 3963 | -7/Zion | Gained Derelict followers 4052 | -7/Zion | Learned location of 1 exit from Factory 4116 | -7/Zion | Found Prototype Launcher 4121 | -7/Zion | Identified Hacking Drone Bay 4143 | -7/Zion | Build established: Derelict-Mutant 4162 | -7/Zion | Learned Factory recycling unit intel 4275 | -7/Zion | Found Prototype Special Weapon 4275 | -7/Zion | Identified RU-N14's Throwing Claymores 4277 | -7/Zion | Identified Gui. Missile Launcher 4283 | -7/Zion | Found RU-N14's Throwing Claymores 4285 | -7/Zion | Found RU-N14's Throwing Claymores 4288 | -7/Zion | Found RU-N14's Throwing Claymores 4345 | -7/Zion | Rebuked by Imprinter 4618 | -7/Zion | Discovered new exit (range 8) 4625 | -7/Zion | Identified exit to Proximity Caves 4688 | -7/Zion | Entered Proximity Caves 4688 | -6/Proximity Caves | Accompanied by 8 allies 5014 | -6/Proximity Caves | Spotted B-75 Beast 5030 | -6/Proximity Caves | Allies destroyed B-75 Beast 5079 | -6/Proximity Caves | Attracted the attention of an 0b10 outpost 5155 | -6/Proximity Caves | Discovered new exit (range 13) 5157 | -6/Proximity Caves | Destroyed 12 combat bots 5159 | -6/Proximity Caves | Lost 6 allies 5170 | -6/Proximity Caves | Identified exit to Factory 5171 | -6/Proximity Caves | Entered Factory 5171 | -6/Factory | Evolved 2 slots: Utility x2 5172 | -6/Factory | Identified exit to Lower Caves 5175 | -6/Factory | Loaded intel: 6 recycling unit locations 5899 | -6/Factory | Entered Lower Caves 5901 | -6/Lower Caves | Attracted the attention of an 0b10 checkpoint 6180 | -6/Lower Caves | Encountered a Warlord checkpoint 6897 | -6/Lower Caves | Spotted B-75 Beast 6944 | -6/Lower Caves | Discovered new exit (range 9) 6960 | -6/Lower Caves | Entered another Lower Caves area 6960 | -6/Lower Caves | Discovered new exit (range 14) 7370 | -6/Lower Caves | Discovered new exit (range 5) 7375 | -6/Lower Caves | Entered Data Miner 7375 | -6/Data Miner | Discovered new exit (range 6) 7399 | -6/Data Miner | Met Data Miner 7420 | -6/Data Miner | Learned location of Section 7 (-2) 7420 | -6/Data Miner | Acquired the access code to Warlord's prototype stash 7438 | -6/Data Miner | Received God Mode back door access code from Data Miner 7467 | -6/Data Miner | Entered Proximity Caves 7475 | -5/Proximity Caves | Learned Factory garrison access intel 7535 | -5/Proximity Caves | Attracted the attention of an 0b10 outpost 7592 | -5/Proximity Caves | Escorted by Enhanced Grunt 7639 | -5/Proximity Caves | Lost 10 parts (1p4n4u1w) 7657 | -5/Proximity Caves | Self-destructed Last Messages --------------- 07632_ M-28 Smith repairs S-27 Virus. 07632_ Enhanced Grunt knocked back. 07633_ System corrupted: Substantial component data lost. 07636_ Enhanced Grunt heat damages Prototype Storage. 07637_ Carbon-fiber Leg fries itself beyond repair. 07639_ Hvy. Laser fries itself beyond repair. 07640_ Enhanced Grunt overheating. 07643_ Adv. Heat Sink fries itself beyond repair. 07645_ Enhanced Grunt overheating. 07646_ Enhanced Grunt heat damages core (-46). 07651_ Mak. Light Armor Plating destroyed. 07652_ System corrupted: Matter fused (-9). 07653_ Acquired Prototype Leg. 07653_ Identified Enh. Flexi-carbon Leg. 07655_ B-60 Warrior suffers critical hit (Burn). 07656_ Knocked back. Map ----- +----------------------------------------------------+ | ?????????????????????????????????????????????????? | | ?????????????????????????????????????????????????? | | ?????????????????????????????????????????????????? | | ?????????????????????????????????????????????????? | | ??? ?????????????????????????????????????????? | | ??? ? ????????????????????????????????????? | | ??? ? ??????????????????????????????????? | | ??" ??????????? #???????????????????? | | "?" ??????????? ### ????????????????? | | # "" #???????### # ????????????????? | | # """ """ #?????#? # ! ?????????????????? | | # "" "" #??#### % ?????????????????? | | # " """ #??# m#???????????????? | | "" ### $ % #???????????????? | | """ ?? " ##??????????????? | | ## "" ????# "" " "#??????????????? | | ## " #??????# "" """ #???????????????? | | # ## #??????# " " #???????????????? | | # ##?????# ##??????????????? | | ##????# s #??????????????? | | ####?### #??????????????? | | ## ##??; g #??????????????? | | # ### ####g ; #??????????????? | | ###?# ## ##; b%## #?????????????? | | ????# ## ;#% #?## ???????????? | | ????# #### ##; %@ #???? # ??????????? | | ????######??# ###### % %##?????#?####??????????? | | ????????????###??#; ;#?????????????????????? | | ?????????????##### % ####?????????????????????? | | ?????????????# ;##????????????????????????? | | ?????????????# ###??????????????????????????? | | ?????????????# ?????????????????????????????? | | ?????????????#; ?????????????????????????????? | | ?????????????## ?????????????????????????????? | | ??????????????## #?????????????????????????????? | | ???????????????####??????????????????????????????? | | ?????????????????????????????????????????????????? | | ?????????????????????????????????????????????????? | | ?????????????????????????????????????????????????? | | ?????????????????????????????????????????????????? | | ?????????????????????????????????????????????????? | | ?????????????????????????????????????????????????? | | ?????????????????????????????????????????????????? | | ?????????????????????????????????????????????????? | | ?????????????????????????????????????????????????? | | ?????????????????????????????????????????????????? | | ?????????????????????????????????????????????????? | | ?????????????????????????????????????????????????? | | ?????????????????????????????????????????????????? | | ?????????????????????????????????????????????????? | +----------------------------------------------------+ Best States ------------- Heat Dissipation 91 Energy Generation 27 Energy Capacity 480 Matter Stores 300 Matter Capacity 300 Sight Range 22 Terrain Scan Density 10 Armor Coverage 600 Evasion (%) 55 Item Schematics ----------------- Thermic Laser | -6/Factory | Hacked Combat Drone Bay | -6/Data Miner | Free Lgt. Regenerative Plating | -6/Data Miner | Free Enh. Armored Leg | -6/Data Miner | Free Prc. Energy Filter | -6/Data Miner | Free Imp. KE Penetrator | -6/Data Miner | Free Centrium Wheel | -6/Data Miner | Free Adv. Coolant Injector | -6/Data Miner | Free Adv. Datajack | -6/Data Miner | Free Lgt. Antimatter Reactor | -6/Data Miner | Free Biometal Medium Treads | -6/Data Miner | Free Robot Schematics ------------------ E-15 Imp | -6/Data Miner | Free S-27 Virus | -6/Data Miner | Free R-10 Processor | -6/Data Miner | Free M-22 Extractor | -6/Data Miner | Free O-32 Director | -6/Data Miner | Free G-50 Soldier | -6/Data Miner | Free Fabricated ------------ Nothing Alien Tech Used ----------------- None Achievements -------------- None Challenges ------------ None Game ------ Seed HeartCoolantInterpreter Manual? 0 Play Time 00:48:35 Cumulative 216.8 hours Start 2024.05.26 @ 20:17:38 End 2024.05.30 @ 21:46:27 Sessions 3 Manual Loads 0 Difficulty Rogue Special Mode None Game No. 208 Rogue 203 Adventurer 5 Explorer 0 Win Type - Total 3 Types 2/0/0/1/0/0/0/0/0 Lore% 58 Gallery% 78 Achievement% 57 Wizard Run 0 Options --------- Layout 2 ASCII 0 Keyboard 0 Movement Arrows Keybinds 0 Fullscreen 1 Font 24/Terminus Map View 50x44 Zoom Use 0% Tactical HUD 1 Map Filters NONE Filters NONE Steam 1 RUN: 33e8ea4a-13ad-4038-b24e-c4f29743dd1b